[Event "Queens Festival Final-B 2022"]
[Site "Tornelo"]
[Date "2022.06.25"]
[Round "1.1"]
[White "Mammadova, Aysel"]
[Black "Masoumi, Sahar"]
[Result "1-0"]
[ECO "B22"]
[WhiteElo "1893"]
[BlackElo "2004"]
[Annotator "NA RC"]
[PlyCount "111"]
[EventDate "2022.06.24"]
[EventType "tourn"]
[EventCountry "NET"]
[SourceTitle "playchess.com"]
[Source "ChessBase"]
[SourceQuality "1"]
[TimeControl "180+2"]

1. e4 {[%emt 0:00:02]} c5 {[%emt 0:00:07]} 2. c3 {[%emt 0:00:03]} Nf6 {[%emt 0:00:01]} 3. e5 {[%emt 0:00:03]} Nd5 {[%emt 0:00:02]} 4. d4 {[%emt 0:00:02]} cxd4 {[%emt 0:00:01]} 5. Nf3 {[%emt 0:00:03]} Nc6 {[%emt 0:00:02]} 6. cxd4 {[%emt 0:00:02]} d6 {[%emt 0:00:02]} 7. Bc4 {[%emt 0:00:03]} dxe5 {[%emt 0:00:02]} 8. Nxe5 {[%emt 0:00:04]} e6 {[%emt 0:00:12]} 9. O-O {[%emt 0:00:08]} Be7 {[%emt 0:00:05]} 10. Qg4 {[%emt 0:00:06]} Bf6 {[%emt 0:00:09]} 11. Nxc6 {[%emt 0:00:03]} bxc6 {[%emt 0:00:02]} 12. Nc3 {[%emt 0:00:04]} O-O {[%emt 0:00:07]} 13. Ne4 {[%emt 0:00:06]} e5 {[%emt 0:00:44]} 14. Nxf6+ {[%emt 0:00:08]} Qxf6 {[%emt 0:00:04]} 15. dxe5 {[%emt 0:00:05]} Bxg4 {[%emt 0:00:12]} 16. exf6 {[%emt 0:00:04]} Nxf6 {[%emt 0:00:02]} 17. Bg5 {[%emt 0:00:07]} Ne4 {[%emt 0:00:03]} 18. Be3 {[%emt 0:00:02]} Nd6 {[%emt 0:00:03]} 19. Bb3 {[%emt 0:00:03]} Rfe8 {[%emt 0:00:03]} 20. Rac1 {[%emt 0:00:03]} Nf5 {[%emt 0:00:11]} 21. Rxc6 {[%emt 0:00:13]} Bh5 {[%emt 0:00:46]} 22. Rc7 {[%emt 0:00:10]} a5 {[%emt 0:00:07]} 23. g4 {[%emt 0:00:05]} a4 {[%emt 0:00:02]} 24. Bd5 {[%emt 0:00:10]} Rad8 {[%emt 0:00:07]} 25. Bc6 {[%emt 0:00:06]} Re6 {[%emt 0:00:03]} 26. gxf5 {[%emt 0:00:05]} Red6 {[%emt 0:00:09]} 27. Bxa4 {[%emt 0:00:06]} Bf3 {[%emt 0:00:04]} 28. Bb3 {[%emt 0:00:02]} Bh5 {[%emt 0:00:07]} 29. Rfc1 {[%emt 0:00:07]} h6 {[%emt 0:00:04]} 30. Bf4 {[%emt 0:00:06]} Rd4 {[%emt 0:00:03]} 31. Bg3 {[%emt 0:00:02]} Rd2 {[%emt 0:00:08]} 32. Rc8 {[%emt 0:00:03]} Rxc8 {[%emt 0:00:01]} 33. Rxc8+ {[%emt 0:00:03]} Kh7 {[%emt 0:00:01]} 34. Kg2 {[%emt 0:00:04]} Rxb2 {[%emt 0:00:03]} 35. Rc7 {[%emt 0:00:04]} Kg8 {[%emt 0:00:02]} 36. Be5 {[%emt 0:00:03]} Re2 {[%emt 0:00:02]} 37. Bd4 {[%emt 0:00:03]} Rd2 {[%emt 0:00:02]} 38. Be3 {[%emt 0:00:02]} Re2 {[%emt 0:00:02]} 39. f6 {[%emt 0:00:03]} gxf6 {[%emt 0:00:02]} 40. Bxh6 {[%emt 0:00:02]} Kh7 {[%emt 0:00:02]} 41. Be3 {[%emt 0:00:03]} Kg7 {[%emt 0:00:02]} 42. a4 {[%emt 0:00:02]} Rb2 {[%emt 0:00:03]} 43. Bd5 {[%emt 0:00:03]} Rb4 {[%emt 0:00:05]} 44. a5 {[%emt 0:00:03]} Ra4 {[%emt 0:00:03]} 45. Rc5 {[%emt 0:00:03]} Rg4+ {[%emt 0:00:02]} 46. Kf1 {[%emt 0:00:04]} Ra4 {[%emt 0:00:01]} 47. Bc6 {[%emt 0:00:04]} Ra2 {[%emt 0:00:03]} 48. Bd5 {[%emt 0:00:05]} Ra4 {[%emt 0:00:03]} 49. Kg2 {[%emt 0:00:03]} Ra3 {[%emt 0:00:03]} 50. Rb5 {[%emt 0:00:05]} Bg6 {[%emt 0:00:02]} 51. Bb6 {[%emt 0:00:03]} Ra4 {[%emt 0:00:02]} 52. Rb3 {[%emt 0:00:03]} Rg4+ {[%emt 0:00:02]} 53. Rg3 {[%emt 0:00:03]} Ra4 {[%emt 0:00:01]} 54. Bb7 {[%emt 0:00:03]} Ra2 {[%emt 0:00:03]} 55. a6 {[%emt 0:00:02]} Kf8 {[%emt 0:00:01]} 56. a7 {[%emt 0:00:03]} 1-0

[Event "Queens Festival Final-B 2022"]
[Site "Tornelo"]
[Date "2022.06.25"]
[Round "1.2"]
[White "Bian, Erin"]
[Black "Vujcic, Milena"]
[Result "1-0"]
[ECO "C80"]
[WhiteElo "1811"]
[BlackElo "1987"]
[Annotator "RC"]
[PlyCount "137"]
[EventDate "2022.06.24"]
[EventType "tourn"]
[EventCountry "NET"]
[SourceTitle "playchess.com"]
[Source "ChessBase"]
[SourceQuality "1"]
[TimeControl "180+2"]

1. e4 {[%emt 0:00:02]} e5 {[%emt 0:00:05]} 2. Nf3 {[%emt 0:00:02]} Nc6 {[%emt 0:00:01]} 3. Bb5 {[%emt 0:00:01]} a6 {[%emt 0:00:01]} 4. Ba4 {[%emt 0:00:02]} Nf6 {[%emt 0:00:01]} 5. O-O {[%emt 0:00:02]} Nxe4 {[%emt 0:00:02]} 6. d4 {[%emt 0:00:02]} exd4 {[%emt 0:00:03]} 7. Re1 {[%emt 0:00:07]} d5 {[%emt 0:00:02]} 8. Nxd4 {[%emt 0:00:04]} Bd6 {[%emt 0:00:28]} 9. Nxc6 {[%emt 0:00:02]} Bxh2+ {[%emt 0:00:03]} 10. Kh1 {[%emt 0:00:01]} Qh4 {[%emt 0:00:03]} 11. Rxe4+ {[%emt 0:00:02]} dxe4 {[%emt 0:00:02]} 12. Qd8+ {[%emt 0:00:02]} Qxd8 {[%emt 0:00:01]} 13. Nxd8+ {[%emt 0:00:01]} Kxd8 {[%emt 0:00:02]} 14. Kxh2 {[%emt 0:00:01]} c5 {[%emt 0:00:01]} 15. Bb3 {[%emt 0:00:18]} f5 {[%emt 0:00:03]} 16. Bd5 {[%emt 0:00:06]} Ra7 {[%emt 0:00:10]} 17. c4 {[%emt 0:00:13]} Ke7 {[%emt 0:00:10]} 18. Bg5+ {[%emt 0:00:08]} Kd6 {[%emt 0:00:09]} 19. Bf4+ {[%emt 0:00:02]} Ke7 {[%emt 0:00:01]} 20. Be5 {[%emt 0:00:04]} Be6 {[%emt 0:00:20]} 21. Nc3 {[%emt 0:00:17]} Rg8 {[%emt 0:00:11]} 22. Rd1 {[%emt 0:00:08]} b6 {[%emt 0:00:08]} 23. Na4 {[%emt 0:00:09]} Bxd5 {[%emt 0:00:09]} 24. Rxd5 {[%emt 0:00:06]} Rb7 {[%emt 0:00:14]} 25. Rd6 {[%emt 0:00:09]} g5 {[%emt 0:00:18]} 26. Nxb6 {[%emt 0:00:27]} Rg6 {[%emt 0:00:11]} 27. Nd5+ {[%emt 0:00:04]} Kf7 {[%emt 0:00:13]} 28. Bf6 {[%emt 0:00:24]} f4 {[%emt 0:00:10]} 29. Rc6 {[%emt 0:00:15]} e3 {[%emt 0:00:12]} 30. fxe3 {[%emt 0:00:10]} fxe3 {[%emt 0:00:02]} 31. Kg3 {[%emt 0:00:07]} g4 {[%emt 0:00:23]} 32. Rxa6 {[%emt 0:00:09]} Rd7 {[%emt 0:00:05]} 33. Rc6 {[%emt 0:00:15]} h5 {[%emt 0:00:02]} 34. Rxc5 {[%emt 0:00:03]} h4+ {[%emt 0:00:02]} 35. Kf4 {[%emt 0:00:04]} Rxf6+ {[%emt 0:00:01]} 36. Nxf6 {[%emt 0:00:02]} e2 {[%emt 0:00:02]} 37. Re5 {[%emt 0:00:03]} Rd4+ {[%emt 0:00:03]} 38. Kg5 {[%emt 0:00:02]} Rxc4 {[%emt 0:00:02]} 39. Rxe2 {[%emt 0:00:01]} Rc5+ {[%emt 0:00:01]} 40. Kxh4 {[%emt 0:00:02]} Kxf6 {[%emt 0:00:01]} 41. Kxg4 {[%emt 0:00:00]} Ra5 {[%emt 0:00:02]} 42. a3 {[%emt 0:00:02]} Ra4+ {[%emt 0:00:01]} 43. Kg3 {[%emt 0:00:01]} Kg5 {[%emt 0:00:02]} 44. Re5+ {[%emt 0:00:01]} Kf6 {[%emt 0:00:01]} 45. Rb5 {[%emt 0:00:01]} Rc4 {[%emt 0:00:02]} 46. Kf3 {[%emt 0:00:01]} Rc2 {[%emt 0:00:01]} 47. g4 {[%emt 0:00:01]} Rc1 {[%emt 0:00:02]} 48. a4 {[%emt 0:00:02]} Ra1 {[%emt 0:00:03]} 49. b3 {[%emt 0:00:01]} Rf1+ {[%emt 0:00:02]} 50. Kg3 {[%emt 0:00:02]} Rg1+ {[%emt 0:00:02]} 51. Kf2 {[%emt 0:00:02]} Rxg4 {[%emt 0:00:03]} 52. Ke3 {[%emt 0:00:01]} Ke6 {[%emt 0:00:01]} 53. Kd3 {[%emt 0:00:01]} Kd6 {[%emt 0:00:01]} 54. Kc3 {[%emt 0:00:01]} Kc6 {[%emt 0:00:02]} 55. Kb2 {[%emt 0:00:03]} Rg1 {[%emt 0:00:04]} 56. Rh5 {[%emt 0:00:04]} Rg2+ {[%emt 0:00:03]} 57. Ka3 {[%emt 0:00:01]} Rg4 {[%emt 0:00:02]} 58. Rh6+ {[%emt 0:00:05]} Kb7 {[%emt 0:00:02]} 59. a5 {[%emt 0:00:02]} Rg5 {[%emt 0:00:02]} 60. Ka4 {[%emt 0:00:01]} Rg4+ {[%emt 0:00:02]} 61. b4 {[%emt 0:00:01]} Rg1 {[%emt 0:00:02]} 62. Rh7+ {[%emt 0:00:02]} Kb8 {[%emt 0:00:03]} 63. a6 {[%emt 0:00:04]} Ra1+ {[%emt 0:00:02]} 64. Kb5 {[%emt 0:00:01]} Rg1 {[%emt 0:00:02]} 65. Rh8+ {[%emt 0:00:08]} Ka7 {[%emt 0:00:03]} 66. Rh7+ {[%emt 0:00:01]} Kb8 {[%emt 0:00:02]} 67. Ka5 {[%emt 0:00:01]} Ra1+ {[%emt 0:00:02]} 68. Kb6 {[%emt 0:00:02]} Rg1 {[%emt 0:00:02]} 69. Rh8+ {[%emt 0:00:02]} 1-0

[Event "Queens Festival Final-B 2022"]
[Site "Tornelo"]
[Date "2022.06.25"]
[Round "1.3"]
[White "Pang, Ashley"]
[Black "Scarsi, Anna Laura"]
[Result "1-0"]
[ECO "A08"]
[WhiteElo "1967"]
[BlackElo "1867"]
[Annotator "RC"]
[PlyCount "109"]
[EventDate "2022.06.24"]
[EventType "tourn"]
[EventCountry "NET"]
[SourceTitle "playchess.com"]
[Source "ChessBase"]
[SourceQuality "1"]
[TimeControl "180+2"]

1. g3 {[%emt 0:00:02]} d5 {[%emt 0:00:05]} 2. Bg2 {[%emt 0:00:02]} c5 {[%emt 0:00:03]} 3. d3 {[%emt 0:00:03]} Nc6 {[%emt 0:00:03]} 4. Nf3 {[%emt 0:00:02]} e6 {[%emt 0:00:06]} 5. Nbd2 {[%emt 0:00:02]} g6 {[%emt 0:00:18]} 6. O-O {[%emt 0:00:09]} Bg7 {[%emt 0:00:03]} 7. e4 {[%emt 0:00:10]} Nge7 {[%emt 0:00:02]} 8. c3 {[%emt 0:00:06]} O-O {[%emt 0:00:05]} 9. Nb3 {[%emt 0:00:20]} b6 {[%emt 0:00:12]} 10. a4 {[%emt 0:00:10]} Ba6 {[%emt 0:00:18]} 11. Re1 {[%emt 0:00:21]} Qd7 {[%emt 0:00:45]} 12. a5 {[%emt 0:00:31]} dxe4 {[%emt 0:00:13]} 13. dxe4 {[%emt 0:00:16]} Qxd1 {[%emt 0:00:07]} 14. Rxd1 {[%emt 0:00:02]} Bc4 {[%emt 0:00:11]} 15. Nfd2 {[%emt 0:00:21]} Bxb3 {[%emt 0:00:10]} 16. Nxb3 {[%emt 0:00:02]} c4 {[%emt 0:00:02]} 17. Nd4 {[%emt 0:00:30]} Nxa5 {[%emt 0:00:09]} 18. e5 {[%emt 0:00:04]} Rad8 {[%emt 0:00:06]} 19. Bg5 {[%emt 0:00:10]} Rfe8 {[%emt 0:00:06]} 20. Nb5 {[%emt 0:00:09]} Rxd1+ {[%emt 0:00:09]} 21. Rxd1 {[%emt 0:00:02]} Nec6 {[%emt 0:00:13]} 22. Nd6 {[%emt 0:00:07]} Rb8 {[%emt 0:00:05]} 23. f4 {[%emt 0:00:03]} h6 {[%emt 0:00:03]} 24. Bf6 {[%emt 0:00:04]} Bxf6 {[%emt 0:00:04]} 25. exf6 {[%emt 0:00:00]} Rd8 {[%emt 0:00:02]} 26. Bf3 {[%emt 0:00:01]} Kf8 {[%emt 0:00:03]} 27. Ra1 {[%emt 0:00:03]} Nb3 {[%emt 0:00:02]} 28. Ra3 {[%emt 0:00:03]} Nba5 {[%emt 0:00:02]} 29. Ra2 {[%emt 0:00:02]} Rxd6 {[%emt 0:00:02]} 30. Bxc6 {[%emt 0:00:02]} Nxc6 {[%emt 0:00:02]} 31. Kf2 {[%emt 0:00:01]} Rd2+ {[%emt 0:00:02]} 32. Ke3 {[%emt 0:00:01]} Rd3+ {[%emt 0:00:00]} 33. Ke2 {[%emt 0:00:01]} Rd6 {[%emt 0:00:03]} 34. Ra1 {[%emt 0:00:01]} Na5 {[%emt 0:00:01]} 35. Ra4 {[%emt 0:00:04]} Rc6 {[%emt 0:00:03]} 36. Ke3 {[%emt 0:00:02]} Ke8 {[%emt 0:00:01]} 37. Ra1 {[%emt 0:00:02]} Kd7 {[%emt 0:00:00]} 38. Rd1+ {[%emt 0:00:01]} Kc7 {[%emt 0:00:01]} 39. Rd4 {[%emt 0:00:03]} Rd6 {[%emt 0:00:00]} 40. Re4 {[%emt 0:00:02]} Rd3+ {[%emt 0:00:02]} 41. Ke2 {[%emt 0:00:01]} Rd6 {[%emt 0:00:01]} 42. g4 {[%emt 0:00:01]} Kc6 {[%emt 0:00:00]} 43. h4 {[%emt 0:00:02]} Kc5 {[%emt 0:00:02]} 44. Re5+ {[%emt 0:00:01]} Kc6 {[%emt 0:00:02]} 45. h5 {[%emt 0:00:03]} gxh5 {[%emt 0:00:02]} 46. Rxh5 {[%emt 0:00:02]} Nb3 {[%emt 0:00:03]} 47. Rxh6 {[%emt 0:00:02]} Rd2+ {[%emt 0:00:01]} 48. Ke1 {[%emt 0:00:01]} Rxb2 {[%emt 0:00:02]} 49. Rh7 {[%emt 0:00:01]} Rd2 {[%emt 0:00:10]} 50. Rxf7 {[%emt 0:00:01]} Rd7 {[%emt 0:00:01]} 51. Rf8 {[%emt 0:00:01]} Kd6 {[%emt 0:00:04]} 52. g5 {[%emt 0:00:02]} Nc5 {[%emt 0:00:03]} 53. g6 {[%emt 0:00:02]} Nd3+ {[%emt 0:00:02]} 54. Kf1 {[%emt 0:00:02]} Nxf4 {[%emt 0:00:08]} 55. g7 {[%emt 0:00:01]} 1-0

[Event "Queens Festival Final-B 2022"]
[Site "Tornelo"]
[Date "2022.06.25"]
[Round "1.4"]
[White "Francis, Onkemetse"]
[Black "Shohradowa, Lala"]
[Result "0-1"]
[ECO "C02"]
[WhiteElo "1777"]
[BlackElo "1856"]
[Annotator "NA RC"]
[PlyCount "92"]
[EventDate "2022.06.24"]
[EventType "tourn"]
[EventCountry "NET"]
[SourceTitle "playchess.com"]
[Source "ChessBase"]
[SourceQuality "1"]
[TimeControl "180+2"]

1. e4 {[%emt 0:00:02]} e6 {[%emt 0:00:05]} 2. d4 {[%emt 0:00:03]} d5 {[%emt 0:00:02]} 3. e5 {[%emt 0:00:03]} c5 {[%emt 0:00:02]} 4. Nf3 {[%emt 0:00:02]} cxd4 {[%emt 0:00:04]} 5. Qxd4 {[%emt 0:00:09]} Nc6 {[%emt 0:00:02]} 6. Qd1 {[%emt 0:00:16]} Nge7 {[%emt 0:00:04]} 7. Bd3 {[%emt 0:00:20]} Ng6 {[%emt 0:00:07]} 8. Bxg6 {[%emt 0:00:03]} hxg6 {[%emt 0:00:03]} 9. Bf4 {[%emt 0:00:09]} Be7 {[%emt 0:00:02]} 10. c3 {[%emt 0:00:08]} b6 {[%emt 0:00:06]} 11. h3 {[%emt 0:00:05]} g5 {[%emt 0:00:03]} 12. Bg3 {[%emt 0:00:14]} g4 {[%emt 0:00:03]} 13. Nd4 {[%emt 0:00:04]} Nxd4 {[%emt 0:00:02]} 14. cxd4 {[%emt 0:00:10]} gxh3 {[%emt 0:00:03]} 15. Rxh3 {[%emt 0:00:03]} Rxh3 {[%emt 0:00:05]} 16. gxh3 {[%emt 0:00:02]} Bb4+ {[%emt 0:00:02]} 17. Kf1 {[%emt 0:00:03]} Ba6+ {[%emt 0:00:03]} 18. Kg2 {[%emt 0:00:03]} Qd7 {[%emt 0:00:23]} 19. a3 {[%emt 0:00:04]} Be7 {[%emt 0:00:03]} 20. Nd2 {[%emt 0:00:04]} O-O-O {[%emt 0:00:03]} 21. Rc1+ {[%emt 0:00:11]} Kb8 {[%emt 0:00:02]} 22. b4 {[%emt 0:00:02]} Rh8 {[%emt 0:00:05]} 23. Qg4 {[%emt 0:00:07]} g5 {[%emt 0:00:04]} 24. Nf3 {[%emt 0:00:03]} Be2 {[%emt 0:00:05]} 25. Re1 {[%emt 0:00:11]} Qb5 {[%emt 0:00:02]} 26. a4 {[%emt 0:00:17]} Qd3 {[%emt 0:00:04]} 27. b5 {[%emt 0:00:14]} Bb4 {[%emt 0:00:18]} 28. Rxe2 {[%emt 0:00:10]} Qxe2 {[%emt 0:00:02]} 29. Nxg5 {[%emt 0:00:02]} Qxg4 {[%emt 0:00:13]} 30. hxg4 {[%emt 0:00:02]} Rf8 {[%emt 0:00:11]} 31. Nh7 {[%emt 0:00:02]} Rc8 {[%emt 0:00:02]} 32. g5 {[%emt 0:00:05]} Be7 {[%emt 0:00:06]} 33. Bf4 {[%emt 0:00:05]} Rc4 {[%emt 0:00:03]} 34. Be3 {[%emt 0:00:03]} Rxa4 {[%emt 0:00:02]} 35. Nf6 {[%emt 0:00:01]} Rb4 {[%emt 0:00:03]} 36. Ng8 {[%emt 0:00:03]} Bf8 {[%emt 0:00:05]} 37. Nh6 {[%emt 0:00:03]} Rxb5 {[%emt 0:00:03]} 38. Nxf7 {[%emt 0:00:02]} Rb3 {[%emt 0:00:12]} 39. Nd8 {[%emt 0:00:04]} Rc3 {[%emt 0:00:10]} 40. Nxe6 {[%emt 0:00:04]} Rc8 {[%emt 0:00:02]} 41. g6 {[%emt 0:00:07]} a5 {[%emt 0:00:02]} 42. g7 {[%emt 0:00:09]} Bxg7 {[%emt 0:00:02]} 43. Nxg7 {[%emt 0:00:02]} Rg8 {[%emt 0:00:02]} 44. Bh6 {[%emt 0:00:05]} a4 {[%emt 0:00:02]} 45. Kf1 {[%emt 0:00:02]} a3 {[%emt 0:00:02]} 46. e6 {[%emt 0:00:07]} a2 {[%emt 0:00:01]} 0-1

[Event "Queens Festival Final-B 2022"]
[Site "Tornelo"]
[Date "2022.06.25"]
[Round "1.5"]
[White "Mariroh, Fariha"]
[Black "Deak-Sala, Emilia"]
[Result "1-0"]
[ECO "B38"]
[WhiteElo "1839"]
[BlackElo "1883"]
[Annotator "NA RC"]
[PlyCount "87"]
[EventDate "2022.06.24"]
[EventType "tourn"]
[EventCountry "NET"]
[SourceTitle "playchess.com"]
[Source "ChessBase"]
[SourceQuality "1"]
[TimeControl "180+2"]

1. e4 {[%emt 0:00:02]} c5 {[%emt 0:00:05]} 2. Nf3 {[%emt 0:00:02]} Nc6 {[%emt 0:00:01]} 3. d4 {[%emt 0:00:01]} cxd4 {[%emt 0:00:02]} 4. Nxd4 {[%emt 0:00:00]} g6 {[%emt 0:00:01]} 5. c4 {[%emt 0:00:03]} Bg7 {[%emt 0:00:01]} 6. Be3 {[%emt 0:00:01]} Nf6 {[%emt 0:00:02]} 7. Nc3 {[%emt 0:00:01]} O-O {[%emt 0:00:01]} 8. f3 {[%emt 0:00:02]} d6 {[%emt 0:00:06]} 9. Be2 {[%emt 0:00:01]} Bd7 {[%emt 0:00:02]} 10. O-O {[%emt 0:00:03]} Nxd4 {[%emt 0:00:01]} 11. Bxd4 {[%emt 0:00:03]} Bc6 {[%emt 0:00:01]} 12. Nd5 {[%emt 0:00:05]} Nd7 {[%emt 0:00:20]} 13. Rc1 {[%emt 0:00:07]} Bxd4+ {[%emt 0:00:17]} 14. Qxd4 {[%emt 0:00:02]} Bxd5 {[%emt 0:00:02]} 15. cxd5 {[%emt 0:00:03]} Qa5 {[%emt 0:00:40]} 16. Rc3 {[%emt 0:00:17]} Rac8 {[%emt 0:00:44]} 17. Rfc1 {[%emt 0:00:09]} Rxc3 {[%emt 0:00:07]} 18. Rxc3 {[%emt 0:00:02]} Qxa2 {[%emt 0:00:19]} 19. Rc7 {[%emt 0:00:07]} Qa1+ {[%emt 0:00:11]} 20. Kf2 {[%emt 0:00:04]} Rd8 {[%emt 0:00:09]} 21. Rxb7 {[%emt 0:00:06]} Qa5 {[%emt 0:00:05]} 22. b4 {[%emt 0:00:06]} Qa3 {[%emt 0:00:12]} 23. Qxa7 {[%emt 0:00:07]} Qxa7+ {[%emt 0:00:02]} 24. Rxa7 {[%emt 0:00:00]} Kf8 {[%emt 0:00:03]} 25. b5 {[%emt 0:00:11]} Nc5 {[%emt 0:00:01]} 26. Ke3 {[%emt 0:00:08]} Rb8 {[%emt 0:00:03]} 27. f4 {[%emt 0:00:10]} Ke8 {[%emt 0:00:04]} 28. e5 {[%emt 0:00:02]} Kf8 {[%emt 0:00:04]} 29. g4 {[%emt 0:00:04]} Ke8 {[%emt 0:00:03]} 30. h4 {[%emt 0:00:01]} Kd8 {[%emt 0:00:01]} 31. exd6 {[%emt 0:00:03]} exd6 {[%emt 0:00:02]} 32. Rxf7 {[%emt 0:00:02]} Rb7 {[%emt 0:00:02]} 33. Rxb7 {[%emt 0:00:04]} Nxb7 {[%emt 0:00:01]} 34. Bd3 {[%emt 0:00:02]} Ke7 {[%emt 0:00:02]} 35. f5 {[%emt 0:00:03]} Kf6 {[%emt 0:00:02]} 36. fxg6 {[%emt 0:00:02]} hxg6 {[%emt 0:00:01]} 37. h5 {[%emt 0:00:01]} gxh5 {[%emt 0:00:02]} 38. gxh5 {[%emt 0:00:00]} Kg5 {[%emt 0:00:01]} 39. Bg6 {[%emt 0:00:02]} Nc5 {[%emt 0:00:03]} 40. b6 {[%emt 0:00:05]} Nb7 {[%emt 0:00:03]} 41. Kd4 {[%emt 0:00:04]} Nc5 {[%emt 0:00:03]} 42. Kc4 {[%emt 0:00:02]} Nb7 {[%emt 0:00:02]} 43. Kb5 {[%emt 0:00:01]} Nc5 {[%emt 0:00:02]} 44. Kc6 {[%emt 0:00:01]} 1-0

[Event "Queens Festival Final-B 2022"]
[Site "Tornelo"]
[Date "2022.06.25"]
[Round "2.1"]
[White "Masoumi, Sahar"]
[Black "Deak-Sala, Emilia"]
[Result "1-0"]
[ECO "B22"]
[WhiteElo "2004"]
[BlackElo "1883"]
[Annotator "RC"]
[PlyCount "115"]
[EventDate "2022.06.24"]
[EventType "tourn"]
[EventCountry "NET"]
[SourceTitle "playchess.com"]
[Source "ChessBase"]
[SourceQuality "1"]
[TimeControl "180+2"]

1. e4 {[%emt 0:00:02]} c5 {[%emt 0:00:05]} 2. c3 {[%emt 0:00:03]} Nf6 {[%emt 0:00:02]} 3. e5 {[%emt 0:00:01]} Nd5 {[%emt 0:00:03]} 4. d4 {[%emt 0:00:01]} cxd4 {[%emt 0:00:01]} 5. cxd4 {[%emt 0:00:01]} d6 {[%emt 0:00:01]} 6. Nf3 {[%emt 0:00:02]} Nc6 {[%emt 0:00:03]} 7. Bc4 {[%emt 0:00:01]} Nb6 {[%emt 0:00:01]} 8. Bb5 {[%emt 0:00:02]} d5 {[%emt 0:00:04]} 9. Nc3 {[%emt 0:00:02]} e6 {[%emt 0:00:07]} 10. O-O {[%emt 0:00:02]} Be7 {[%emt 0:00:02]} 11. a3 {[%emt 0:00:02]} O-O {[%emt 0:00:03]} 12. Re1 {[%emt 0:00:03]} a6 {[%emt 0:00:01]} 13. Bd3 {[%emt 0:00:02]} Na5 {[%emt 0:00:17]} 14. Bc2 {[%emt 0:00:06]} f5 {[%emt 0:00:45]} 15. exf6 {[%emt 0:00:03]} Bxf6 {[%emt 0:00:01]} 16. Ne5 {[%emt 0:00:24]} g6 {[%emt 0:00:12]} 17. Qg4 {[%emt 0:00:10]} Nac4 {[%emt 0:00:06]} 18. b3 {[%emt 0:01:08]} Nxe5 {[%emt 0:00:04]} 19. dxe5 {[%emt 0:00:02]} Bg7 {[%emt 0:00:02]} 20. Bg5 {[%emt 0:00:12]} Qe8 {[%emt 0:00:04]} 21. Re3 {[%emt 0:00:03]} Nd7 {[%emt 0:00:16]} 22. Rae1 {[%emt 0:00:08]} Nc5 {[%emt 0:00:15]} 23. Qh4 {[%emt 0:00:04]} Bd7 {[%emt 0:00:18]} 24. Be7 {[%emt 0:00:14]} b6 {[%emt 0:00:02]} 25. Bxf8 {[%emt 0:00:02]} Qxf8 {[%emt 0:00:06]} 26. Rh3 {[%emt 0:00:03]} h6 {[%emt 0:00:09]} 27. Bxg6 {[%emt 0:00:02]} Nxb3 {[%emt 0:00:05]} 28. Rf3 {[%emt 0:00:02]} Qd8 {[%emt 0:00:05]} 29. Qb4 {[%emt 0:00:09]} Nc5 {[%emt 0:00:03]} 30. Qg4 {[%emt 0:00:11]} Be8 {[%emt 0:00:02]} 31. Bb1 {[%emt 0:00:05]} Qe7 {[%emt 0:00:04]} 32. Rh3 {[%emt 0:00:06]} h5 {[%emt 0:00:02]} 33. Qe2 {[%emt 0:00:03]} Rd8 {[%emt 0:00:06]} 34. Qc2 {[%emt 0:00:02]} Bh6 {[%emt 0:00:07]} 35. Rg3+ {[%emt 0:00:03]} Kh8 {[%emt 0:00:01]} 36. Ne2 {[%emt 0:00:10]} d4 {[%emt 0:00:02]} 37. Qc4 {[%emt 0:00:04]} Bb5 {[%emt 0:00:04]} 38. Qb4 {[%emt 0:00:05]} Bxe2 {[%emt 0:00:02]} 39. Rxe2 {[%emt 0:00:02]} d3 {[%emt 0:00:02]} 40. Bxd3 {[%emt 0:00:06]} Qd7 {[%emt 0:00:03]} 41. Bb1 {[%emt 0:00:06]} a5 {[%emt 0:00:03]} 42. Qc3 {[%emt 0:00:02]} Na4 {[%emt 0:00:04]} 43. Qc2 {[%emt 0:00:01]} Nb2 {[%emt 0:00:06]} 44. h3 {[%emt 0:00:04]} Nd3 {[%emt 0:00:03]} 45. Rd2 {[%emt 0:00:01]} Rc8 {[%emt 0:00:05]} 46. Rdxd3 {[%emt 0:00:03]} Rxc2 {[%emt 0:00:03]} 47. Rxd7 {[%emt 0:00:01]} Rc1+ {[%emt 0:00:01]} 48. Kh2 {[%emt 0:00:02]} Rxb1 {[%emt 0:00:01]} 49. Rf3 {[%emt 0:00:01]} Kg8 {[%emt 0:00:03]} 50. Rf6 {[%emt 0:00:02]} Bg7 {[%emt 0:00:01]} 51. Rxe6 {[%emt 0:00:02]} Rb3 {[%emt 0:00:02]} 52. Rg6 {[%emt 0:00:02]} Rxa3 {[%emt 0:00:02]} 53. Rgxg7+ {[%emt 0:00:01]} Kf8 {[%emt 0:00:01]} 54. e6 {[%emt 0:00:01]} Rb3 {[%emt 0:00:01]} 55. Rgf7+ {[%emt 0:00:02]} Ke8 {[%emt 0:00:01]} 56. Ra7 {[%emt 0:00:01]} Rd3 {[%emt 0:00:03]} 57. Ra8+ {[%emt 0:00:03]} Rd8 {[%emt 0:00:01]} 58. Rxd8+ {[%emt 0:00:01]} 1-0

[Event "Queens Festival Final-B 2022"]
[Site "Tornelo"]
[Date "2022.06.25"]
[Round "2.2"]
[White "Shohradowa, Lala"]
[Black "Mariroh, Fariha"]
[Result "1-0"]
[ECO "E72"]
[WhiteElo "1856"]
[BlackElo "1839"]
[Annotator "NA RC"]
[PlyCount "87"]
[EventDate "2022.06.24"]
[EventType "tourn"]
[EventCountry "NET"]
[SourceTitle "playchess.com"]
[Source "ChessBase"]
[SourceQuality "1"]
[TimeControl "180+2"]

1. d4 {[%emt 0:00:02]} Nf6 {[%emt 0:00:04]} 2. c4 {[%emt 0:00:02]} g6 {[%emt 0:00:01]} 3. Nc3 {[%emt 0:00:02]} Bg7 {[%emt 0:00:01]} 4. g3 {[%emt 0:00:02]} d6 {[%emt 0:00:01]} 5. Bg2 {[%emt 0:00:02]} O-O {[%emt 0:00:01]} 6. e4 {[%emt 0:00:02]} e5 {[%emt 0:00:04]} 7. d5 {[%emt 0:00:02]} a5 {[%emt 0:00:01]} 8. Nge2 {[%emt 0:00:02]} Na6 {[%emt 0:00:01]} 9. O-O {[%emt 0:00:02]} Nc5 {[%emt 0:00:01]} 10. Rb1 {[%emt 0:00:05]} Ne8 {[%emt 0:00:10]} 11. b3 {[%emt 0:00:05]} f5 {[%emt 0:00:01]} 12. f3 {[%emt 0:00:02]} Nf6 {[%emt 0:00:03]} 13. a3 {[%emt 0:00:04]} fxe4 {[%emt 0:00:17]} 14. fxe4 {[%emt 0:00:02]} Bg4 {[%emt 0:00:02]} 15. b4 {[%emt 0:00:04]} axb4 {[%emt 0:00:02]} 16. axb4 {[%emt 0:00:02]} Ncd7 {[%emt 0:00:05]} 17. h3 {[%emt 0:00:02]} Bxe2 {[%emt 0:00:05]} 18. Qxe2 {[%emt 0:00:01]} Nh5 {[%emt 0:00:05]} 19. Kh2 {[%emt 0:00:09]} Nb6 {[%emt 0:00:05]} 20. c5 {[%emt 0:00:07]} Na4 {[%emt 0:00:04]} 21. Nxa4 {[%emt 0:00:04]} Rxa4 {[%emt 0:00:00]} 22. Qb5 {[%emt 0:00:06]} Ra2 {[%emt 0:00:05]} 23. Be3 {[%emt 0:00:15]} Nf6 {[%emt 0:00:19]} 24. cxd6 {[%emt 0:00:06]} cxd6 {[%emt 0:00:02]} 25. Qc4 {[%emt 0:00:15]} Qa8 {[%emt 0:00:12]} 26. Rbc1 {[%emt 0:00:15]} b5 {[%emt 0:00:08]} 27. Qxb5 {[%emt 0:00:23]} Nxe4 {[%emt 0:00:08]} 28. Rxf8+ {[%emt 0:00:02]} Bxf8 {[%emt 0:00:02]} 29. Rc7 {[%emt 0:00:08]} Qa3 {[%emt 0:00:12]} 30. Qd7 {[%emt 0:00:11]} Rxg2+ {[%emt 0:00:27]} 31. Kxg2 {[%emt 0:00:03]} Qa2+ {[%emt 0:00:17]} 32. Kf3 {[%emt 0:00:03]} Nd2+ {[%emt 0:00:07]} 33. Bxd2 {[%emt 0:00:17]} Qxd5+ {[%emt 0:00:01]} 34. Ke2 {[%emt 0:00:01]} Qg2+ {[%emt 0:00:04]} 35. Kd1 {[%emt 0:00:02]} Qf3+ {[%emt 0:00:08]} 36. Kc1 {[%emt 0:00:06]} Qa3+ {[%emt 0:00:02]} 37. Kc2 {[%emt 0:00:03]} Qa2+ {[%emt 0:00:04]} 38. Kc3 {[%emt 0:00:03]} Qa1+ {[%emt 0:00:07]} 39. Kc4 {[%emt 0:00:04]} Qd4+ {[%emt 0:00:18]} 40. Kb5 {[%emt 0:00:02]} Qd5+ {[%emt 0:00:05]} 41. Kb6 {[%emt 0:00:02]} Qd4+ {[%emt 0:00:03]} 42. Kb7 {[%emt 0:00:03]} Qd5+ {[%emt 0:00:04]} 43. Kb8 {[%emt 0:00:01]} Qa8+ {[%emt 0:00:01]} 44. Kxa8 {[%emt 0:00:03]} 1-0